bitfinex/quotes_SOLUSD_20260306
["timestamp","ask_amount","ask_price","bid_price","bid_amount"]
[1772760927289,1.03291521,89.068,89.006,1.0389711]
[1772760927787,1.03291521,89.119,89.015,5.10909883]
[1772760928090,1.03291521,89.119,89.031,1.0389711]
[1772760928288,28.0469258,89.137,89.037,1.0389711]
[1772760928588,1.30919704,89.161,89.057,1.07730255]
[1772760928791,1.30919704,89.161,89.082,1.07730255]
[1772760928792,1.03328993,89.159,89.082,1.07730255]
[1772760929087,1.03347713,89.149,89.089,1.36162569]
[1772760929285,1.30938424,89.161,89.092,4.82477569]
[1772760929588,1.30938424,89.161,89.1,1.07730255]
[1772760929589,11.21579183,89.16,89.1,1.07730255]
[1772760930286,0.27590711,89.161,89.1,1.07730255]
[1772760930986,0.27590711,89.161,89.094,0.28432314]
[1772760930987,0.27590711,89.161,89.103,1.03370581]
[1772760931369,11.4114801,89.16,89.103,1.03370581]
[1772760931582,1.03399305,89.159,89.103,1.03370581]
[1772760932197,1.03416187,89.159,89.103,1.03370581]
[1772760932968,1.03433909,89.149,89.099,11.22337324]
[1772760933174,1.03433909,89.149,89.1,1.03370581]
[1772760933684,1.03433909,89.149,89.1,12.25705036]
[1772760934081,11.21604342,89.158,89.101,1.03370581]
[1772760934270,1.0345047,89.157,89.101,1.03370581]
[1772760934976,1.03466817,89.155,89.103,1.03370581]
[1772760936074,11.21629503,89.156,89.103,1.03370581]
[1772760936273,12.25112443,89.156,89.103,1.03370581]
[1772760937093,0.27590711,89.161,89.092,1.03370581]
[1772760937094,1.03498807,89.149,89.092,1.03370581]
[1772760937595,0.27590711,89.161,89.101,1.03370581]
[1772760938787,11.21579183,89.16,89.101,1.03370581]
[1772760938989,11.21579183,89.16,89.104,1.03370581]
[1772760939192,1.03530612,89.159,89.104,1.03370581]
[1772760939395,1.03530612,89.159,89.096,11.22372574]
[1772760939396,1.03530612,89.149,89.096,11.22372574]
[1772760940376,1.03530612,89.149,89.097,1.03370581]
[1772760940988,1.03561498,89.139,89.097,1.03370581]
[1772760941289,1.03561498,89.129,89.085,11.22523432]
[1772760941997,1.03576955,89.109,89.037,1.03370581]
[1772760942179,1.03576955,89.109,89.041,1.03370581]
[1772760942375,39.26495994,89.138,89.055,1.03370581]
[1772760942576,40.30072949,89.138,89.063,1.03370581]
[1772760942809,1.03576955,89.137,89.064,1.31802895]
[1772760942979,1.03576955,89.137,89.066,1.03370581]
[1772760943182,1.03592911,89.129,89.069,1.03370581]
[1772760943501,39.26584095,89.136,89.069,1.03370581]
[1772760943502,1.03592911,89.119,89.069,1.03370581]
[1772760943879,1.03607629,89.109,89.069,1.03370581]
[1772760944377,12.44755639,89.12,89.069,1.03370581]
[1772760944593,1.03607629,89.119,89.069,1.03370581]
[1772760945508,1.03622709,89.109,89.063,11.22798893]
[1772760946293,11.2196928,89.129,89.064,1.03370581]
[1772760946495,1.03637839,89.128,89.064,1.03370581]
[1772760946707,39.26892481,89.129,89.064,1.03370581]
[1772760946708,1.03637839,89.119,89.064,1.03370581]
[1772760947001,1.03652764,89.089,89.023,1.03370581]
[1772760947578,11.4114801,89.08,89.025,1.03370581]
[1772760947919,1.03652764,89.079,89.025,1.03370581]
[1772760948212,1.03667664,89.069,89.024,11.23292595]
[1772760948582,1.03667664,89.069,89.025,1.03370581]
[1772760949392,11.22485632,89.088,89.025,1.03370581]
[1772760949595,11.22485632,89.088,89.016,44.93535506]
[1772760949596,1.03683337,89.093,89.027,1.03370581]
[1772760950810,11.4114801,89.09,89.027,1.03370581]
[1772760951106,1.03697485,89.089,89.027,1.03370581]
[1772760951883,11.22485632,89.088,89.029,1.03370581]
[1772760952683,12.26176815,89.089,89.029,1.03370581]
[1772760953092,1.03741664,89.088,89.029,1.03370581]
[1772760954003,1.03756806,89.086,89.031,1.03370581]
[1772760954208,11.22498232,89.087,89.031,1.03370581]
[1772760954792,1.03756806,89.086,89.031,1.03370581]
[1772760955916,11.22523432,89.085,89.033,1.03370581]
[1772760958194,1.0381183,89.085,89.035,1.03370581]
[1772760958397,28.05924856,89.098,89.035,1.03370581]
[1772760958398,1.0381183,89.095,89.035,1.03370581]
[1772760960229,1.01930581,89.093,89.038,1.08997368]
[1772760960910,1.01930581,89.089,89.038,1.08997368]
[1772760961089,1.01930581,89.069,89.02,1.08997368]
[1772760961290,1.01930581,89.059,89.02,1.08997368]
[1772760961515,1.01930581,89.049,88.991,1.08997368]
[1772760961716,1.01930581,89.049,88.987,39.33158775]
[1772760961717,11.4114801,89.03,88.987,11.2375965]
[1772760961932,1.01930581,89.019,88.961,1.08997368]
[1772760962213,1.01930581,88.999,88.952,1.08997368]
[1772760962393,1.01930581,88.999,88.951,11.24214455]
[1772760962394,1.01930581,89.01,88.961,1.08997368]
[1772760962588,1.01930581,89.009,88.961,1.08997368]
[1772760962813,1.01930581,88.999,88.951,11.24214455]
[1772760963023,1.01930581,88.999,88.951,40.4374796]
[1772760963205,11.4114801,88.99,88.951,11.24214455]
[1772760963408,1.01930581,88.989,88.941,11.24340855]
[1772760963611,1.01930581,88.999,88.942,1.08997368]
[1772760964196,1.01930581,88.997,88.944,1.08997368]
[1772760964609,1.01930581,88.989,88.944,1.08997368]
[1772760964808,1.01930581,88.989,88.943,11.24315572]
[1772760965997,39.32672643,88.998,88.943,11.24315572]
[1772760965998,1.01930581,88.997,88.944,1.08997368]
[1772760966201,1.01930581,88.989,88.944,1.08997368]
[1772760966406,1.01930581,88.987,88.945,11.24290291]
[1772760966714,1.01930581,88.987,88.946,1.08997368]
[1772760966915,11.23747022,88.988,88.946,1.08997368]
[1772760967122,39.33114577,88.988,88.946,1.08997368]
[1772760967299,1.01930581,88.987,88.94,0.2]
[1772760967706,1.01930581,88.987,88.942,1.08997368]
[1772760968722,37.7322634,88.988,88.943,11.24315572]
[1772760969321,11.4114801,88.98,88.943,11.24315572]
[1772760969619,11.4114801,88.98,88.94,0.2]
[1772760969930,11.4114801,88.97,88.94,0.2]
[1772760971500,11.23987006,88.969,88.94,0.2]
[1772760972337,11.23860686,88.979,88.942,1.10792121]
[1772760972826,11.23860686,88.979,88.94,0.2]
[1772760972827,11.4114801,88.97,88.94,0.2]
[1772760973130,39.33512401,88.979,88.94,0.2]
[1772760973131,0.28432314,88.978,88.94,0.2]
[1772760973510,11.4114801,88.97,88.94,0.2]
[1772760973712,0.28432314,88.976,88.94,12.55142396]
[1772760974035,0.28432314,88.976,88.94,1.30792121]
[1772760974330,11.4114801,88.97,88.94,1.30792121]
[1772760974512,0.28432314,88.976,88.941,1.10792121]
[1772760974712,11.4114801,88.99,88.941,1.10792121]
[1772760975437,11.23987006,88.969,88.94,0.2]
[1772760976538,39.33954522,88.969,88.94,0.2]
[1772760977039,11.4114801,88.95,88.884,1.10792121]
[1772760977335,11.4114801,88.94,88.885,1.10792121]
[1772760977832,11.4114801,88.96,88.886,1.10792121]
[1772760978033,11.23987006,88.969,88.891,1.10792121]
[1772760978225,11.4114801,88.99,88.911,1.10792121]
[1772760978425,11.4114801,88.99,88.904,0.28432314]
[1772760978426,11.23734394,88.989,88.913,1.39224435]
[1772760978623,11.23734394,88.989,88.914,1.10792121]
[1772760978624,39.33070379,88.989,88.914,1.10792121]
[1772760979022,39.31524083,89.024,88.92,1.10792121]
[1772760979229,39.31524083,89.024,88.929,1.39224435]
[1772760979230,11.4114801,89.01,88.929,1.39224435]
[1772760979542,11.4114801,89.02,88.93,1.10792121]
[1772760979917,0.28432314,89.019,88.93,1.10792121]
[1772760980319,11.4114801,89.01,88.93,1.10792121]
[1772760980839,44.92569236,89.036,88.932,1.10792121]
[1772760980840,0.28432314,88.989,88.932,1.10792121]
[1772760981335,11.4114801,88.96,88.92,1.10792121]
[1772760981536,230.31378847,89.009,88.9,1.10792121]
[1772760981537,0.28432314,88.964,88.9,1.10792121]
[1772760981841,0.28432314,88.949,88.9,1.10792121]
[1772760982135,11.4114801,88.96,88.9,1.10792121]
[1772760982539,0.28432314,88.959,88.9,1.10792121]
[1772760982919,0.28432314,88.957,88.902,1.10792121]
[1772760983943,11.44227779,88.95,88.902,1.10792121]
[1772760984641,0.28432314,88.957,88.902,1.10792121]
[1772760984843,11.44227779,88.95,88.902,1.10792121]
[1772760985139,0.28432314,88.955,88.904,1.10792121]
[1772760985547,11.44227779,88.95,88.904,1.10792121]
[1772760986322,0.28432314,88.949,88.904,1.10792121]
[1772760986518,11.44227779,88.94,88.898,11.24872764]
[1772760987139,11.44227779,88.93,88.884,11.25061878]
[1772760987442,11.44227779,88.92,88.883,0.68569917]
[1772760988018,0.28432314,88.919,88.883,0.68569917]
[1772760989141,11.44227779,88.9,88.859,1.10792121]
[1772760989343,0.28432314,88.909,88.861,1.10792121]
[1772760989524,0.28432314,88.917,88.861,1.10792121]
[1772760989721,11.24631683,88.918,88.861,1.10792121]
[1772760990024,11.44227779,88.9,88.861,1.10792121]
[1772760990647,0.28432314,88.909,88.861,1.10792121]
[1772760991239,0.28432314,88.907,88.863,1.10792121]
[1772760993350,11.24758176,88.908,88.865,1.10792121]
[1772760993527,44.95566936,88.977,88.865,1.10792121]
[1772760993842,11.44227779,88.94,88.868,1.10792121]
[1772760994355,0.28432314,88.939,88.868,1.10792121]
[1772760994846,11.2437878,88.938,88.87,1.10792121]
[1772760995043,39.35325731,88.938,88.87,1.10792121]
[1772760995457,0.14216157,88.937,88.87,1.10792121]
[1772760995640,11.2437878,88.938,88.87,1.10792121]
[1772760996341,11.24239732,88.949,88.873,1.10792121]
[1772760996546,11.24239732,88.949,88.874,1.10792121]
[1772760996845,11.24239732,88.949,88.881,1.10792121]
[1772760997248,39.34839064,88.949,88.881,1.10792121]
[1772760997453,0.28432314,88.948,88.881,1.10792121]
[1772760998435,11.44227779,88.94,88.881,1.10792121]
[1772760999250,11.24366138,88.939,88.883,1.10792121]
[1772760999866,11.52545669,88.959,88.883,1.10792121]
[1772761000035,11.44227779,88.95,88.883,1.10792121]
[1772761000357,11.44227779,88.94,88.883,1.10792121]
[1772761000554,11.44227779,88.94,88.838,45.02564883]
[1772761000555,11.44227779,88.92,88.877,11.25140178]
[1772761001050,11.44227779,88.92,88.878,1.10792121]
[1772761001436,11.24619035,88.919,88.88,1.10792121]
[1772761001839,28.10188619,88.962,88.88,1.10792121]
[1772761002043,11.44227779,88.94,88.88,1.10792121]
[1772761002256,0.28432314,88.949,88.88,1.10792121]
[1772761003136,11.44227779,88.95,88.88,1.10792121]
[1772761004039,0.28432314,88.959,88.882,1.10792121]
[1772761005053,11.44227779,88.95,88.882,1.10792121]
[1772761005256,0.28432314,88.959,88.882,1.10792121]
[1772761005641,11.23999603,88.969,88.893,1.10792121]
[1772761006038,39.61944715,88.979,88.898,1.10792121]
[1772761006238,11.44227779,88.97,88.898,1.10792121]
[1772761007261,11.23987006,88.969,88.899,95.61412388]
[1772761007468,11.23987006,88.969,88.9,1.10792121]
[1772761009354,11.23987006,88.969,88.902,1.10792121]
[1772761009747,0.28432314,88.968,88.902,1.10792121]
[1772761010147,11.44227779,88.95,88.902,1.10792121]
[1772761011458,11.24252372,88.948,88.904,1.10792121]
[1772761012050,0.28432314,88.949,88.904,1.10792121]
[1772761012253,11.52681779,88.949,88.904,1.10792121]
[1772761012442,28.10138149,88.964,88.904,1.10792121]
[1772761012643,11.52495126,88.963,88.904,1.10792121]
[1772761013159,0.28432314,88.959,88.904,1.10792121]
[1772761013466,0.28432314,88.949,88.904,1.10792121]
[1772761013764,0.28432314,88.962,88.906,1.10792121]
[1772761014443,0.28432314,88.958,88.906,1.10792121]
[1772761015863,0.28432314,88.958,88.908,1.10792121]
[1772761016048,11.24138628,88.957,88.908,1.10792121]
[1772761017148,11.44227779,88.95,88.908,1.10792121]
[1772761017345,0.28432314,88.949,88.908,1.10792121]
[1772761018246,11.24252372,88.948,88.909,12.35537647]
[1772761018658,11.24252372,88.948,88.91,1.10792121]
[1772761019347,39.34883302,88.948,88.91,1.10792121]
[1772761020359,11.24252372,88.948,88.912,1.10792121]
[1772761020755,11.44227779,88.96,88.912,1.10792121]
[1772761021060,11.44227779,88.98,88.912,1.10792121]
[1772761021268,0.28432314,88.969,88.912,1.10792121]
[1772761021461,11.44227779,88.97,88.912,1.10792121]
[1772761021662,0.28432314,88.969,88.912,1.10792121]
[1772761021966,11.44227779,88.97,88.912,1.10792121]
[1772761022561,11.23869704,88.979,88.917,1.10792121]
[1772761022865,44.93646397,89.015,88.917,1.10792121]
[1772761022866,11.23734394,88.989,88.918,1.10792121]
[1772761023167,11.23734394,88.989,88.919,1.39224435]
[1772761023372,0.28432314,88.988,88.921,1.10792121]
[1772761023561,11.23481895,89.009,88.927,1.10792121]
[1772761023859,11.23481895,89.009,88.937,1.10792121]
[1772761024066,0.28432314,89.008,88.937,1.10792121]
[1772761024269,11.23481895,89.009,88.937,1.10792121]
[1772761024455,11.23481895,89.009,88.94,1.10792121]
[1772761024649,0.28432314,89.008,88.94,1.10792121]
[1772761024849,11.23481895,89.009,88.94,1.10792121]
[1772761025864,0.28432314,89.008,88.94,1.10792121]
[1772761026067,11.23404764,89.016,88.942,1.39224435]
[1772761026259,11.23404764,89.016,88.943,1.10792121]
[1772761026260,0.28432314,89.015,88.943,1.10792121]
[1772761026670,0.28432314,89.013,88.948,1.10792121]
[1772761026874,0.28432314,89.009,88.948,1.10792121]
[1772761027389,44.9063959,89.075,88.949,1.10792121]
[1772761027390,11.3758329,89.019,88.949,1.10792121]
[1772761027550,11.23367133,89.019,88.95,1.39224435]
[1772761027749,11.23367133,89.019,88.952,1.10792121]
[1772761027949,0.28432314,89.018,88.953,1.39224435]
[1772761028150,0.14216157,89.018,88.954,0.28432314]
[1772761028380,0.14216157,89.018,88.955,1.10792121]
[1772761028582,0.28432314,89.018,88.955,1.10792121]
[1772761029374,0.28432314,89.028,88.958,1.10792121]
[1772761030868,11.23254742,89.027,88.961,1.10792121]
[1772761031373,11.44227779,89.02,88.961,1.10792121]
[1772761031755,11.23254742,89.027,88.961,1.10792121]
[1772761031951,11.44227779,89.02,88.961,1.10792121]
[1772761032649,11.23254742,89.027,88.961,1.10792121]
[1772761032851,11.23254742,89.027,88.964,1.10792121]
[1772761033656,11.44227779,89.02,88.964,1.10792121]
[1772761033954,11.44227779,89.0,88.964,1.10792121]
[1772761034774,11.44227779,89.0,88.965,11.24037542]
[1772761034978,11.44227779,89.02,88.966,1.10792121]
[1772761035168,0.28432314,89.019,88.966,1.10792121]
[1772761035479,11.44227779,89.01,88.966,1.10792121]
[1772761035660,11.44227779,89.0,88.966,1.10792121]
[1772761036684,11.44227779,89.02,88.966,1.10792121]
[1772761036882,11.23368307,89.018,88.968,1.10792121]
[1772761038671,0.1,89.03,88.968,1.10792121]
[1772761038672,11.23298983,89.024,88.968,1.10792121]
[1772761038990,11.22773644,89.066,88.99,1.05792121]
[1772761039172,11.32838535,89.06,88.99,1.05792121]
[1772761039375,0.0999278,89.039,88.99,1.05792121]
[1772761039587,0.28432314,89.029,88.99,1.05792121]
[1772761039776,84.31289017,89.06,88.979,1.05792121]
[1772761039777,11.44227779,89.01,88.979,1.05792121]
[1772761040386,0.09993263,89.009,88.971,11.23949397]
[1772761040567,0.09993263,89.009,88.972,1.05792121]
[1772761040884,0.14216157,89.019,88.974,1.05792121]
[1772761041789,0.09993661,89.009,88.974,1.05792121]
[1772761042294,11.44227779,89.01,88.974,1.05792121]
[1772761042587,11.42768157,89.01,88.974,1.05792121]
[1772761043796,11.42768157,89.04,88.955,1.05792121]
[1772761043797,0.09996028,88.999,88.955,1.05792121]
[1772761044779,39.32186632,89.009,88.955,1.05792121]
[1772761045795,39.32186632,89.009,88.948,39.34883302]
[1772761045796,0.09997508,88.999,88.956,11.24151265]
[1772761046171,0.09997508,88.999,88.957,1.05792121]
[1772761046588,0.09998367,88.989,88.957,1.05792121]
[1772761046780,0.09998367,88.989,88.935,1.05792121]
[1772761047292,11.52768434,89.0,88.935,1.05792121]
[1772761047588,0.38432591,88.999,88.935,1.05792121]
[1772761047789,0.28432314,88.997,88.937,1.05792121]
[1772761048012,11.23481895,89.009,88.937,1.05792121]
[1772761048492,0.10002619,89.008,88.937,1.05792121]
[1772761048682,0.10002619,88.998,88.937,1.05792121]
[1772761048876,0.10002619,88.989,88.937,1.05792121]
[1772761049272,0.10004369,88.988,88.937,1.05792121]
[1772761049486,0.14216157,88.989,88.937,1.05792121]
[1772761049686,0.14216157,88.989,88.939,1.05792121]
[1772761049890,0.10004645,88.988,88.939,1.05792121]
[1772761050285,0.10005167,88.978,88.939,1.05792121]
[1772761050797,0.28432314,88.979,88.939,1.05792121]
[1772761051169,0.1000528,88.998,88.939,1.05792121]
[1772761051390,0.28432314,88.998,88.939,1.05792121]
[1772761051897,11.2363338,88.997,88.941,1.06931353]
[1772761053606,11.23519762,89.006,88.941,1.06931353]
[1772761053776,0.28432314,89.003,88.942,39.35148747]
[1772761053979,0.28432314,89.003,88.943,1.06931353]
[1772761054380,0.10007604,88.998,88.943,1.06931353]
[1772761055400,0.28432314,88.999,88.943,1.06931353]
[1772761056001,0.28432314,88.999,88.945,1.06931353]
[1772761056190,11.23620755,88.998,88.945,1.06931353]
[1772761056897,39.32672643,88.998,88.945,1.06931353]
[1772761057097,39.42682445,88.998,88.945,1.06931353]
[1772761058817,11.33630557,88.998,88.947,1.06931353]
[1772761059483,0.10011562,88.997,88.947,1.06931353]
[1772761061815,0.28432314,88.979,88.937,1.06931353]
[1772761062018,11.2368611,88.993,88.937,1.06931353]
[1772761062204,11.2368611,88.993,88.938,1.06931353]
[1772761063297,28.09029031,88.999,88.94,1.06931353]
[1772761063298,0.28432314,88.998,88.94,1.06931353]
[1772761064988,0.10017486,88.997,88.94,1.06931353]
[1772761065405,0.10017486,88.996,88.942,1.06931353]
[1772761065802,0.10017486,88.995,88.942,1.06931353]
[1772761067510,11.2363338,88.997,88.944,1.06931353]
[1772761068235,0.38453946,88.996,88.944,1.06931353]
[1772761068518,0.10021632,88.988,88.944,1.06931353]
[1772761069091,0.10022628,88.978,88.944,1.06931353]
[1772761069291,0.10022628,88.978,88.943,11.24315572]
[1772761069500,0.10022628,88.977,88.936,12.31335418]
[1772761069700,0.10022628,88.968,88.937,1.06931353]
[1772761069908,0.10022628,88.968,88.898,1.06931353]
[1772761070092,0.10022628,88.968,88.897,0.28432314]
[1772761070093,0.10022628,88.968,88.9,1.06931353]
[1772761070300,3.69383402,89.002,88.893,56.24739855]
[1772761070301,0.10024359,88.998,88.928,1.06931353]
[1772761071309,11.52040444,88.999,88.928,1.06931353]
[1772761071595,0.10026424,89.017,88.944,1.06931353]
[1772761071801,0.10026424,89.016,88.945,1.06931353]
[1772761072003,0.10026424,89.016,88.95,1.06931353]
[1772761072197,0.10026424,89.016,88.95,0.28432314]
[1772761072403,0.10026424,89.016,88.949,3.69383402]
[1772761072404,0.10026424,89.016,88.953,1.06931353]
[1772761072619,0.10026424,89.016,88.954,1.06931353]
[1772761072918,0.10026424,89.016,88.955,1.06931353]
[1772761073117,11.42619124,89.01,88.955,1.06931353]
[1772761073313,0.10028617,89.009,88.955,1.06931353]
[1772761073490,0.10028617,89.009,88.956,39.34529429]
[1772761073491,0.10028617,89.008,88.956,39.34529429]
[1772761073818,0.10028617,89.008,88.957,1.06931353]
[1772761075114,0.24244774,89.008,88.959,1.06931353]
[1772761075323,0.10032166,89.007,88.959,1.06931353]
[1772761077008,39.45961065,89.019,88.961,1.06931353]
[1772761077210,0.14216157,89.018,88.961,1.06931353]
[1772761078821,11.2334861,89.02,88.962,1.06931353]
[1772761079024,0.10036264,89.024,88.965,1.06931353]
[1772761079613,0.14216157,89.029,88.967,1.06931353]
[1772761080823,0.10040058,89.028,88.967,1.06931353]
[1772761081524,0.10041689,89.027,88.972,1.07399687]
[1772761083525,0.10041689,89.027,88.974,1.07399687]
[1772761084728,0.38479544,89.019,88.974,1.07399687]
[1772761084921,0.1004723,89.009,88.973,12.31336162]
[1772761085231,0.1004723,89.009,88.974,1.07399687]
[1772761086527,0.1004723,89.009,88.976,1.07399687]
[1772761086923,0.10050797,89.008,88.97,11.23963422]
[1772761087227,0.100529,88.998,88.954,11.2417654]
[1772761087726,0.100529,88.988,88.945,11.24290291]
[1772761088031,0.100529,88.988,88.946,1.07399687]
[1772761089508,0.10058161,88.987,88.947,11.24265011]
[1772761089706,0.10058161,88.978,88.947,11.24265011]
[1772761089921,0.10058161,88.978,88.939,1.07399687]
[1772761092326,11.23873316,88.978,88.941,1.07399687]
[1772761092916,0.10066636,88.994,88.941,1.07399687]
[1772761093122,28.09072624,88.998,88.941,1.07399687]
[1772761093123,0.28432314,89.001,88.941,1.07399687]
[1772761093415,0.10066636,88.998,88.941,1.07399687]
[1772761094631,0.10069582,88.997,88.943,1.07399687]
[1772761096117,0.10073435,88.988,88.943,1.07399687]
[1772761096927,0.10073435,88.988,88.915,0.28432314]
[1772761096928,0.1007555,88.968,88.926,1.07399687]
[1772761097127,84.28102665,88.988,88.926,1.07399687]
[1772761097128,39.33114577,88.988,88.926,1.07399687]
[1772761097339,0.1007555,88.986,88.926,1.07399687]
[1772761099431,0.1007555,88.986,88.931,1.07399687]
[1772761099615,0.10079247,88.978,88.931,1.07399687]
[1772761100629,0.10081419,88.968,88.931,1.07399687]
[1772761100816,0.10081419,88.968,88.927,11.24517862]
[1772761100817,0.10081419,88.959,88.903,1.07399687]
[1772761101134,0.10083322,88.958,88.911,1.07399687]
[1772761101324,11.24125992,88.958,88.913,1.07399687]
[1772761101628,0.28432314,88.979,88.916,1.07399687]
[1772761101928,0.10085372,88.978,88.916,1.07399687]
[1772761102317,0.10085372,88.968,88.916,1.07399687]
[1772761102832,0.28432314,88.969,88.916,1.07399687]
[1772761103532,0.10085372,88.977,88.921,1.07399687]
[1772761104126,11.33835029,88.988,88.921,1.07399687]
[1772761104613,0.10088007,88.987,88.921,1.07399687]
[1772761105540,0.10090252,88.977,88.923,1.07399687]
[1772761106335,11.23873316,88.978,88.923,1.07399687]
[1772761106814,0.10091799,89.021,88.926,1.07399687]
[1772761107016,0.10092799,89.019,88.949,1.07399687]
[1772761107623,11.33448487,89.019,88.958,0.28432314]
[1772761107835,11.33448487,89.019,88.959,1.07399687]
[1772761108019,11.23179045,89.033,88.968,1.07399687]
[1772761108216,0.10093303,89.032,88.968,1.07399687]
[1772761108520,0.10093988,89.029,88.968,1.07399687]
[1772761108938,0.10093988,89.028,88.968,1.07399687]
[1772761109923,11.33336114,89.028,88.97,1.05792121]
[1772761110618,0.10096205,89.056,88.989,1.05792121]
[1772761111038,0.1,89.06,88.996,1.05792121]
[1772761111236,0.1,89.06,88.997,0.28432314]
[1772761111436,11.22851143,89.059,88.999,1.05792121]
[1772761111745,11.22851143,89.059,89.002,1.05792121]
[1772761111943,11.22851143,89.059,89.007,1.05792121]
[1772761112240,0.1,89.06,89.007,1.05792121]
[1772761114248,0.1,89.06,89.012,1.05792121]
[1772761116346,0.1,89.06,89.014,1.05792121]
[1772761116746,0.1009778,89.059,89.014,1.05792121]
[1772761116963,0.10099279,89.058,89.013,11.23431408]
[1772761117848,0.10099279,89.058,89.013,12.29223529]
[1772761118355,0.10100137,89.057,89.013,11.23431408]
[1772761118750,0.10100137,89.057,89.013,12.29223529]
[1772761118952,0.10100137,89.057,89.014,1.05792121]
[1772761120156,11.22863751,89.058,89.014,1.05792121]
[1772761120333,0.10100759,89.057,89.014,1.05792121]
[1772761120854,0.10100759,89.057,89.016,1.05792121]
[1772761122955,0.10100759,89.057,89.018,1.05792121]
[1772761123134,11.22863751,89.058,89.018,1.05792121]
[1772761123329,0.1,89.06,89.021,1.05792121]
[1772761123533,167.2,89.101,89.021,1.05792121]
[1772761123534,0.10102095,89.096,89.024,1.05792121]
[1772761123734,11.22375517,89.097,89.027,1.05792121]
[1772761124139,0.10101852,89.095,89.027,1.05792121]
[1772761124540,11.22375517,89.097,89.027,1.05792121]
[1772761125038,0.1,89.1,89.033,1.05792121]
[1772761125242,0.1,89.1,89.046,1.05792121]
[1772761126863,0.1,89.1,89.051,1.05792121]
[1772761128257,0.1010222,89.098,89.047,11.23002459]
[1772761128470,0.1010222,89.098,89.048,1.05792121]
[1772761128838,0.10101763,89.096,89.05,1.05792121]
[1772761129440,0.10101763,89.096,89.036,28.0783311]
[1772761129441,0.10101763,89.089,89.044,11.23037218]
[1772761130041,0.10101763,89.089,89.045,1.05792121]
[1772761130607,11.41517319,89.07,89.029,11.23225945]
[1772761130872,11.23103359,89.039,89.006,11.23519762]
[1772761131250,11.23103359,89.039,89.007,1.05792121]
[1772761131577,0.10102669,89.078,89.007,1.05792121]
[1772761131750,0.28432314,89.086,89.01,1.05792121]
[1772761131944,0.10102733,89.079,89.01,1.05792121]
[1772761132560,0.10102733,89.068,89.01,1.05792121]
[1772761132864,0.38535047,89.079,89.01,1.05792121]
[1772761133052,0.10102946,89.076,89.012,1.05792121]
[1772761133653,11.22611643,89.078,89.015,1.34224435]
[1772761133858,11.22473032,89.089,89.016,1.05792121]
[1772761134160,11.22473032,89.089,89.021,1.05792121]
[1772761134561,11.22473032,89.089,89.025,1.05792121]
[1772761135169,11.51517319,89.1,89.025,1.05792121]
[1772761135170,11.22347052,89.099,89.03,1.05792121]
[1772761135557,11.22077367,89.121,89.051,1.02630531]
[1772761135757,11.22057853,89.122,89.056,1.02630531]
[1772761135960,11.22057853,89.122,89.061,1.02630531]
[1772761136162,11.22095176,89.119,89.065,3.69383402]
[1772761136454,11.22095176,89.119,89.067,1.02630531]
[1772761136863,11.22095176,89.119,89.072,1.02630531]
[1772761137346,28.04919723,89.13,89.071,3.69383402]
[1772761137347,11.21855998,89.138,89.074,1.02630531]
[1772761138167,0.1,89.15,89.074,1.02630531]
[1772761138369,11.21717573,89.149,89.077,1.02630531]
[1772761138973,0.1,89.15,89.082,1.02630531]
[1772761139163,0.1,89.15,89.083,1.31062845]
[1772761139367,0.4013736,89.15,89.089,1.02630531]
[1772761139873,0.3011302,89.149,89.089,1.02630531]
[1772761140272,0.1,89.15,89.089,1.02630531]
[1772761140578,0.27590711,89.161,89.099,1.0896054]
[1772761140758,0.27590711,89.161,89.101,1.0896054]
[1772761140952,11.21579183,89.16,89.101,1.0896054]
[1772761141164,0.40073215,89.159,89.101,1.0896054]
[1772761141360,0.40073215,89.157,89.103,1.0896054]
[1772761141558,0.40073215,89.149,89.102,11.22309263]
[1772761142156,0.40058653,89.148,89.097,11.22370868]
[1772761142657,0.28432314,89.139,89.082,1.0896054]
[1772761142883,0.40058653,89.128,89.079,11.22595838]
[1772761143179,0.40043693,89.141,89.08,1.0896054]
[1772761143379,11.21830827,89.14,89.082,1.0896054]
[1772761143975,11.6186016,89.14,89.082,1.0896054]
[1772761144173,0.40029333,89.139,89.082,1.0896054]
[1772761144479,0.40029333,89.138,89.082,1.0896054]
[1772761145596,0.40014308,89.129,89.072,1.0896054]
[1772761145780,0.40014308,89.119,89.074,1.0896054]
[1772761147875,0.40014308,89.119,89.076,1.0896054]
[1772761148165,0.39969889,89.133,89.076,1.0896054]
[1772761148377,0.39969889,89.132,89.076,1.0896054]
[1772761148573,0.39969889,89.128,89.076,1.0896054]
[1772761148882,0.39969889,89.119,89.076,1.0896054]
[1772761149365,0.39969889,89.119,89.075,11.22649452]
[1772761149562,0.39956019,89.128,89.076,1.0896054]
[1772761150178,0.39941725,89.137,89.078,1.0896054]
[1772761150562,0.39941725,89.147,89.078,1.0896054]
[1772761150778,11.21747782,89.147,89.081,1.0896054]
[1772761152079,0.39913711,89.145,89.081,1.0896054]
[1772761152387,0.28432314,89.146,89.083,1.0896054]
[1772761152388,0.39913711,89.143,89.083,1.0896054]
[1772761153670,0.39899622,89.153,89.084,1.0896054]
[1772761154070,0.39885826,89.149,89.084,1.0896054]